Cogmind - Beta 13 @@@ ROGUE MODE // 2024.05.02 @ 22:49:21 Player: TinyBoulder Result: Destroyed by S-43 Plague with Heavy Machine Gun Performance ------------- Evolutions (9) 4500 Regions Visited (24) 4800 Robots Destroyed (164) 820 Value Destroyed (8176) 8176 Prototype IDs (28) 560 Alien Tech Used (2) 400 Bonus (9080) 9080 TOTAL SCORE: 28336 Bonus ------- High Alert Combat Kills 344 Follower Combat Kills 1725 Network Hubs Disabled 200 Met Zhirov 300 Met Warlord at Base 500 MAIN.C Attacked Warlord 500 Warlord Defense Kills 914 Built Enhanced Grunts 300 A7 Reached Mainframe 300 Met R17 at Cetus 500 Met Warlord at Research 2000 Invited to Help at Command 2000 Friendly Fire -503 Cogmind --------- Core Integrity 0/1600 Matter 275/300 Energy 98/100 System Corruption 7% Temperature Cool (0) Movement Core (50) Location -1/Access Parts ------- > --- POWER (2) -------- (None) > --- PROPULSION (5) --- (None) > --- UTILITY (13) ----- Improved Targeting Computer > --- WEAPON (5) ------- (None) > --- INVENTORY (5) ---- Light Antimatter Reactor Long-range Sensor Array Point Defense Array Advanced Remote Datajack Peak State ------------ > --- POWER ------------ Micro Antimatter Reactor Quantum Reactor > --- PROPULSION ------- Myomer Leg Myomer Leg Biometal Leg Centrium Leg Centrium Leg > --- UTILITY ---------- Advanced Coolant Injector Large Storage Unit Enhanced Optical Array Long-range Sensor Array Improved Targeting Computer Advanced Target Analyzer Advanced Transmission Jammer Improved Reaction Control System Improved Cloaking Device Improved Utility Shielding Heavy Armor Plating Advanced Corruption Screen > --- WEAPON ----------- Heavy Battle Rifle KE Penetrator Railgun Helical Railgun Helical Railgun > --- INVENTORY -------- Light Antimatter Reactor Particle Reactor Centrium Leg Centrium Leg Long-range Sensor Array Improved Utility Shielding Improved Focal Shield Point Defense Array Transdimensional Reconstructor Vortex Rail Vortex Rail Advanced Remote Datajack Improved Plasma Cutter RU-N14's Throwing Claymores v3 [Rating: 168] Favorites ----------- Power Micro Fission Core Engine Light Angular Momentum Engine Power Core Micro Fission Core Reactor Heavy Antimatter Reactor Propulsion Aluminum Leg Treads Biometal Medium Treads Leg Aluminum Leg Wheel Compact Wheel Hover Unit Improved Antigrav System Flight Unit Xenon Bombardment Thruster Utility Medium Storage Unit Device Advanced Coolant Injector Storage Medium Storage Unit Processor Enhanced Optical Array Hackware Hacking Suite Protection Improved Powered Armor Weapon KE Penetrator Energy Gun Particle Gun Energy Cannon Ion Burst Cannon Ballistic Gun KE Penetrator Ballistic Cannon Bore Cannon Launcher Heavy Missile Launcher Special Weapon RU-N14's Throwing Claymores v3 Impact Weapon Heavy Hammer Slashing Weapon Carbide Saw Build | -11 -10 -9 -9 -8 -8 -8 -6 -6 -6 -6 -6 -5 -5 -5 -5 -4 -4 -4 -4 -4 -3 -3 -2 -1 ------- Run | Yrd Mat Mat Min Mat Sto Rec Fac Ext Cet Arc Hub Fac Upp Upp Zhi Pro Fac Upp Upp War Pro Res Res Acc Slots Evolved 18 | . . 2 . 2 . . 4 . . . . 2 . . . . 2 . . . . 2 2 2 Power 1 | . . . . . . . . . . . . 1 . . . . . . . . . . . . Propulsion 3 | . . 1 . . . . 1 . . . . . . . . . 1 . . . . . . . Utility 11 | . . . . 2 . . 2 . . . . 1 . . . . 1 . . . . 1 2 2 Weapon 3 | . . 1 . . . . 1 . . . . . . . . . . . . . . 1 . . Parts Attached 257 | 6 7 9 4 20 8 1 7 43 12 4 8 24 . 6 5 5 12 8 5 10 4 18 7 24 Power 21 | 1 . 1 . 1 3 . . 2 . 1 1 2 . . 2 . 2 . . . . 3 . 2 Engine 6 | 1 . 1 . . 2 . . 2 . . . . . . . . . . . . . . . . Core 8 | . . . . 1 1 . . . . 1 1 2 . . 1 . 1 . . . . . . . Reactor 7 | . . . . . . . . . . . . . . . 1 . 1 . . . . 3 . 2 Propulsion 53 | 2 . 2 3 1 3 . 1 9 3 . 1 6 . . . . 2 1 . 2 . 5 3 9 Treads 1 | . . . . . . . . . . . . . . . . . . . . . . 1 . . Leg 49 | 2 . 2 2 1 3 . 1 9 3 . 1 6 . . . . 2 1 . 2 . 4 3 7 Wheel 1 | . . . 1 . . . . . . . . . . . . . . . . . . . . . Hover 1 | . . . . . . . . . . . . . . . . . . . . . . . . 1 Flight 1 | . . . . . . . . . . . . . . . . . . . . . . . . 1 Utility 69 | 1 3 1 . 8 1 1 3 6 2 . 1 8 . 4 3 4 2 2 2 1 2 7 2 5 Device 29 | . 1 . . 3 1 1 . . 1 . . 5 . 2 2 2 2 2 2 . . 3 . 2 Storage 6 | 1 2 1 . 1 . . . . . . . . . . . . . . . . . . 1 . Processor 9 | . . . . 1 . . 1 1 . . . . . 1 . . . . . 1 . 3 . 1 Hackware 1 | . . . . . . . . 1 . . . . . . . . . . . . . . . . Protection 24 | . . . . 3 . . 2 4 1 . 1 3 . 1 1 2 . . . . 2 1 1 2 Artifact . | . . . . . . . . . . . . . . . . . . . . . . . . . Weapon 114 | 2 4 5 1 10 1 . 3 26 7 3 5 8 . 2 . 1 6 5 3 7 2 3 2 8 Energy Gun 13 | 1 1 3 . 3 . . . . . . . . . . . . . . . 2 . . . 3 Energy Cannon 5 | . . . . . 1 . . 2 1 . . 1 . . . . . . . . . . . . Ballistic Gun 54 | 1 2 1 . 6 . . 2 9 2 2 1 5 . 1 . 1 4 3 2 4 1 2 2 3 Ballistic Cannon 10 | . . . . 1 . . . 6 1 1 1 . . . . . . . . . . . . . Launcher 24 | . 1 . 1 . . . 1 9 3 . 3 2 . 1 . . . 2 1 . . . . . Special Weapon 6 | . . . . . . . . . . . . . . . . . 1 . . 1 1 1 . 2 Impact Weapon 1 | . . 1 . . . . . . . . . . . . . . . . . . . . . . Slashing Weapon 1 | . . . . . . . . . . . . . . . . . 1 . . . . . . . Piercing Weapon . | . . . . . . . . . . . . . . . . . . . . . . . . . Special Melee Weapon . | . . . . . . . . . . . . . . . . . . . . . . . . . Unidentified Prototypes 12 | . . . . 1 2 . . . 2 . . . . . 3 . . . . 4 . . . . Parts Lost 93 | . . 1 9 1 1 . . 15 2 1 3 8 . . . 3 . . 6 4 2 4 2 31 Power 8 | . . . 1 . 1 . . 1 . 1 . 1 . . . . . . . . . 2 . 1 Propulsion 29 | . . 1 4 . . . . 4 2 . 1 4 . . . . . . 1 1 2 1 . 8 Utility 29 | . . . 1 . . . . 5 . . 1 2 . . . 2 . . 2 2 . 1 . 13 Weapon 27 | . . . 3 1 . . . 5 . . 1 1 . . . 1 . . 3 1 . . 2 9 Highest Loss Streak 17 | . . 1 9 1 1 . . 8 1 1 3 3 . . . 3 . . 2 2 1 4 1 17 To Critical Strikes 4 | . . . 1 . . . . . . . . . . . . 1 . . . 1 . . . 1 Average Slot Usage (%) 94 | . 91 99 94 91 98 100 96 91 99 100 98 90 100 100 100 99 93 100 97 94 87 82 94 78 Engine 2 | . 14 11 9 . 5 . . 4 6 . . . . . . . . . . . . . . . Core 3 | . . . . 8 2 9 6 1 . 5 6 7 11 11 8 5 5 5 5 5 5 1 . . Reactor 2 | . . . . . . . . . . . . . . . 2 5 5 5 5 5 5 4 8 6 Leg 23 | . 28 32 31 21 26 27 26 24 25 26 26 20 23 23 23 23 22 26 24 23 19 15 20 14 Device 11 | . 6 11 9 8 14 18 13 3 5 6 5 6 11 11 11 10 18 21 20 21 15 17 17 16 Storage 6 | . 14 11 11 9 9 9 6 6 6 6 6 5 5 5 5 5 5 5 5 5 5 4 4 3 Processor 12 | . . . . . 9 9 9 16 20 20 20 17 17 17 14 11 10 10 10 10 10 12 17 16 Protection 5 | . . . . 16 3 . 6 9 6 6 6 7 5 5 7 11 5 5 5 5 5 1 4 4 Energy Gun 1 | . 14 21 10 6 . . . . . . . . . . . . . . . . . . . 2 Energy Cannon 1 | . . . . . 5 9 6 2 4 6 6 . . . . . . . . . . . . . Ballistic Gun 16 | . 13 11 10 14 21 18 19 11 9 12 10 20 23 21 23 22 20 20 19 16 20 22 20 12 Ballistic Cannon 1 | . . . . 5 . . . 3 4 5 4 . . . . . . . . . . . . . Launcher 1 | . . . 10 . . . . 2 7 . 2 1 . 1 . . . . . . . . . . Naked Turns . | . . . . . . . . . . . . . . . . . . . . . . . . . Heaviest Build 99 | 12 28 35 36 33 36 33 45 67 67 57 55 56 48 53 67 74 74 72 71 76 75 75 88 99 Greatest Support 138 | 20 20 30 30 30 35 35 45 65 70 60 60 70 70 70 70 70 97 99 99 107 107 113 121 138 Greatest Overweight (x) 2 | . 1 1 2 1 1 . . 1 1 . . 2 . . . 1 1 . . . 1 1 . 1 Average Overweight (x) . | . . . . . . . . . . . . . . . . . . . . . . . . . Largest Inventory Capacity 15 | 8 15 15 15 15 10 10 10 10 10 10 10 10 10 10 10 10 10 10 10 10 10 10 15 15 Average Capacity 10 | 6 9 13 15 10 10 10 10 10 10 10 10 10 10 10 10 10 10 10 10 10 10 10 13 13 Most Carried 14 | 3 9 13 14 10 10 10 8 10 10 10 10 10 9 10 10 10 10 10 10 10 10 10 14 14 Average Carried 9 | 1 7 10 13 9 9 9 6 8 9 9 10 9 8 9 9 8 9 9 7 9 9 8 12 9 Final Capacity 15 | 8 10 15 15 10 10 10 10 10 10 10 10 10 10 10 10 10 10 10 10 10 10 10 15 5 Final Carried 14 | 3 9 13 11 9 10 9 8 10 9 10 10 8 9 10 10 8 10 10 8 10 9 10 14 4 Class Distribution -------------------- 51% | Scavenger-Gunner 24% | Scavenger-Tank 12% | Gunner 6% | Mutant 4% | Scavenger-Mutant Dominant Class ---------------- Mutant | -10/Materials Scavenger-Gunner | -9/Materials Scavenger-Gunner | -9/Mines Scavenger-Tank | -8/Materials Gunner | -8/Storage Gunner | -8/Recycling Gunner | -6/Factory Scavenger-Mutant | -6/Extension Scavenger-Gunner | -6/Cetus Scavenger-Gunner | -6/Archives Scavenger-Gunner | -6/Hub_04(d) Scavenger-Gunner | -5/Factory Scavenger-Gunner | -5/Upper Caves Scavenger-Gunner | -5/Upper Caves Scavenger-Gunner | -5/Zhirov Scavenger-Tank | -4/Proximity Caves Scavenger-Tank | -4/Factory Scavenger-Gunner | -4/Upper Caves Scavenger-Tank | -4/Upper Caves Scavenger-Tank | -4/Warlord Scavenger-Tank | -3/Proximity Caves Scavenger-Gunner | -3/Research Scavenger-Gunner | -2/Research Scavenger-Gunner | -1/Access Resources | -11 -10 -9 -9 -8 -8 -8 -6 -6 -6 -6 -6 -5 -5 -5 -5 -4 -4 -4 -4 -4 -3 -3 -2 -1 ----------- Run | Yrd Mat Mat Min Mat Sto Rec Fac Ext Cet Arc Hub Fac Upp Upp Zhi Pro Fac Upp Upp War Pro Res Res Acc Matter Collected 7341 | 161 236 275 70 198 432 58 156 1086 394 94 100 608 85 206 90 223 342 383 566 296 430 297 179 376 Remotely . | . . . . . . . . . . . . . . . . . . . . . . . . . Salvage Created 7464 | . 221 595 . 192 279 . 185 934 186 150 357 652 54 272 90 221 342 387 658 374 490 251 115 459 Parts 371 | . 20 21 . 8 20 . 8 43 6 7 18 38 2 12 . 5 18 17 37 23 26 7 3 32 Haulers Intercepted 6 | . . 2 . . . . . 1 . . 1 . . 1 . . . . . . . . 1 . Recyclers Shooed 2 | . . . . . . . 1 . . . . . . . . . . . . . . 1 . . Parts Field Recycled . | . . . . . . . . . . . . . . . . . . . . . . . . . Retrieved Matter . | . . . . . . . . . . . . . . . . . . . . . . . . . Parts Self-Destructed 99 | . . . . . . . . . . . . . 2 13 . 4 . 22 33 . 25 . . . Prevented . | . . . . . . . . . . . . . . . . . . . . . . . . . Kills | -11 -10 -9 -9 -8 -8 -8 -6 -6 -6 -6 -6 -5 -5 -5 -5 -4 -4 -4 -4 -4 -3 -3 -2 -1 ------- Run | Yrd Mat Mat Min Mat Sto Rec Fac Ext Cet Arc Hub Fac Upp Upp Zhi Pro Fac Upp Upp War Pro Res Res Acc Combat Hostiles Destroyed 134 | . 7 10 . 5 9 . 5 16 3 2 5 9 1 5 . 3 4 7 13 5 11 3 1 10 Guns 86 | . 7 10 . 3 5 . 1 2 . . . 9 1 1 . 3 4 6 10 5 9 . 1 9 Cannons 21 | . . . . 2 4 . 2 8 2 2 1 . . . . . . . . . . . . . AOE 26 | . . . . . . . 2 6 1 . 3 . . 4 . . . 1 3 . 2 3 . 1 Classes Destroyed 19 | . 2 3 . 1 1 . 1 5 1 . . 1 . . . . . 1 . 1 1 . . 1 Worker 6 | . . . . . . . . 1 . . 2 . . . . . . . . . . 1 . 2 Builder 4 | . . . . . . . 1 2 . . . 1 . . . . . . . . . . . . Tunneler 2 | . . . . . . . . 1 . . 1 . . . . . . . . . . . . . Hauler 6 | . . 2 . . . . . 1 . . 1 . . 1 . . . . . . . . 1 . Recycler 4 | . . 1 . . . . . 2 . . . . . . . . . . . . . 1 . . Operator 3 | . . . . . 1 . . 1 . . 1 . . . . . . . . . . . . . Drone 2 | . . . . . . . . . . . . . . . . . . . . . 2 . . . Watcher 4 | . . . . . . . . . 2 . . . . . . . 1 . . . . 1 . . Swarmer 22 | . 3 . . . . . . 6 . . 1 . . . . . . 1 5 . 4 . 1 1 Cutter 3 | . . . . . . . . . . . . . . . . . . . . . . . . 3 Grunt 45 | . 4 9 . 2 4 . 4 4 2 . 2 . . 5 . . 3 1 3 . 2 . . . Brawler 2 | . . . . . . . . . . . . . . . . . . 1 . . 1 . . . Duelist 2 | . . . . . . . . . . . . . . . . . . 1 . 1 . . . . Sentry 21 | . . 1 . 1 3 . 1 4 . 2 . 3 . . . 1 1 2 1 . 1 . . . Specialist 2 | . . . . . . . . . . . . 2 . . . . . . . . . . . . Hunter 15 | . . . . 2 2 . . . . . 2 . 1 . . 2 . . 2 . . 2 . 2 Programmer 16 | . . . . . . . . 1 . . . 4 . . . . . 1 2 2 1 1 . 4 Behemoth 1 | . . . . . . . . 1 . . . . . . . . . . . . . . . . Cetus Guard 1 | . . . . . . . . . 1 . . . . . . . . . . . . . . . Executioner 2 | . . . . . . . . . . . . . . . . . . . . 2 . . . . Savage 1 | . . . . . . . . 1 . . . . . . . . . . . . . . . . Best Kill Streak 10 | . 5 3 . 2 3 . 5 6 2 2 10 4 1 6 . 1 4 2 5 5 4 3 1 6 Combat Bots Only 5 | . 5 3 . 2 3 . 4 4 1 2 5 3 1 5 . 1 3 2 5 5 4 2 1 5 Max Kills in Single Turn 5 | . 1 2 . 1 1 . 3 2 1 1 5 1 1 3 . 1 2 1 4 1 2 3 1 2 Gunslinging 1 | . . 1 . . . . . . . . . . . . . . . . . . . . . 1 Exploded 3 | . . . . . . . 2 2 1 . 2 . . 3 . . . 1 3 . 2 2 . 1 Melee . | . . . . . . . . . . . . . . . . . . . . . . . . . Uniques/NPCs Destroyed . | . . . . . . . . . . . . . . . . . . . . . . . . . Combat | -11 -10 -9 -9 -8 -8 -8 -6 -6 -6 -6 -6 -5 -5 -5 -5 -4 -4 -4 -4 -4 -3 -3 -2 -1 -------- Run | Yrd Mat Mat Min Mat Sto Rec Fac Ext Cet Arc Hub Fac Upp Upp Zhi Pro Fac Upp Upp War Pro Res Res Acc Hostile Shots Fired 1430 | . 34 42 37 20 40 . 27 280 18 8 71 104 6 19 . 52 28 14 83 91 30 14 5 407 Missed 477 | . 11 10 12 5 11 . 5 103 7 3 26 27 2 8 . 14 9 4 27 35 9 5 . 144 Damage Taken 18101 | . 310 436 719 230 453 . 263 2322 398 117 1302 1223 71 246 . 610 407 208 836 1225 398 473 357 5497 Core 2782 | . 28 102 251 14 30 . 78 203 . . 124 97 21 20 . 17 43 . 18 119 17 61 28 1511 Absorbed by Shields 75 | . . . . . . . . 63 12 . . . . . . . . . . . . . . . Redirected to Shielding 411 | . . . . 33 . . . . . . . . . . . 165 . . . . . . . 213 Ignored by Resistances 713 | . . . . . . . . . . . . 20 . . . . 7 11 143 248 68 27 . 189 Regen/Repaired (Parts) 688 | . . . . . 77 . . . . . . 130 . . . . . . . 481 . . . . Core Remaining (%) 78 | 100 88 . 11 . . 92 . . . . 52 . . . . 84 . . . . 82 95 98 . Volleys Fired 401 | . 20 20 2 12 25 . 5 77 28 5 9 28 3 8 2 13 14 15 32 12 23 20 4 24 Largest 5 | . 2 3 3 3 3 . 4 4 4 4 4 4 4 4 4 4 4 4 4 4 4 5 5 5 Hottest 228 | . 85 150 112 129 156 . 192 228 207 205 216 189 127 138 127 127 129 140 137 131 144 174 174 196 Shots Fired 1181 | . 39 60 4 36 71 . 16 142 49 14 33 110 12 29 8 49 56 59 126 47 83 34 16 88 Gun 978 | . 38 60 2 28 61 . 10 47 8 6 13 108 12 26 8 49 56 57 125 47 82 33 16 86 Cannon 165 | . . . . 8 10 . 4 87 31 8 15 2 . . . . . . . . . . . . Launcher 34 | . 1 . 2 . . . 2 8 10 . 5 . . 3 . . . 2 1 . . . . . Special 4 | . . . . . . . . . . . . . . . . . . . . . 1 1 . 2 Kinetic 986 | . 19 20 1 28 61 . 10 116 12 11 20 108 12 26 8 49 56 57 125 47 82 33 16 69 Thermal 140 | . 19 40 1 8 10 . 4 18 27 3 8 2 . . . . . . . . . . . . Explosive 38 | . 1 . 2 . . . 2 8 10 . 5 . . 3 . . . 2 1 . 1 1 . 2 Electromagnetic . | . . . . . . . . . . . . . . . . . . . . . . . . . Entropic 17 | . . . . . . . . . . . . . . . . . . . . . . . . 17 Robot Hit Streak 19 | . 4 11 2 16 9 . 12 13 4 4 3 17 2 6 3 7 7 11 19 10 8 6 3 6 Robot Miss Streak 10 | . 3 3 1 3 9 . 2 5 5 3 4 4 2 4 2 5 4 3 3 5 10 3 3 6 Penetration Max 2 | . . . . . . . . 2 1 . 1 1 . 1 . . 1 1 1 . . 1 . 1 Secondary Targets 18 | . 1 3 . . . . . . . . . 2 . . . . . 1 1 4 1 . . 5 Max Gunslinging Chain 2 | . 1 1 . . . . . . . . . 1 . . . . . 1 1 1 1 . . 2 Shots Hit Robots 685 | . 21 38 2 28 58 . 13 101 12 8 15 63 6 17 5 24 30 39 84 30 33 10 8 40 Core Hits 471 | . 13 19 5 17 47 . 25 105 27 4 25 26 2 12 5 10 13 23 29 13 15 9 4 23 Critical Kills 18 | . . . . . . . . 5 . 2 1 . 1 . . 1 1 . 2 1 4 . . . Critical Parts Destroyed 41 | . . . . . . . . 13 . . 2 5 . . . . 1 2 5 2 3 2 . 6 Critical Strikes 80 | . . 2 . . . . . 31 . 3 3 7 1 . . 2 2 2 7 3 7 3 . 7 Burn 2 | . . 2 . . . . . . . . . . . . . . . . . . . . . . Destroy 75 | . . . . . . . . 31 . 3 3 7 1 . . 2 2 2 7 3 7 2 . 5 Sever 1 | . . . . . . . . . . . . . . . . . . . . . . 1 . . Detonate 2 | . . . . . . . . . . . . . . . . . . . . . . . . 2 Melee Attacks . | . . . . . . . . . . . . . . . . . . . . . . . . . Impact . | . . . . . . . . . . . . . . . . . . . . . . . . . Slashing . | . . . . . . . . . . . . . . . . . . . . . . . . . Piercing . | . . . . . . . . . . . . . . . . . . . . . . . . . Sneak Attacks . | . . . . . . . . . . . . . . . . . . . . . . . . . Combat Hostiles . | . . . . . . . . . . . . . . . . . . . . . . . . . Follow-up Attacks . | . . . . . . . . . . . . . . . . . . . . . . . . . Damage Inflicted 21652 | . 273 600 196 390 1023 . 646 3324 1384 251 1263 1636 101 887 114 447 721 1405 1791 832 1238 1013 174 1943 Guns 12832 | . 261 600 17 254 775 . 212 824 82 107 167 1593 101 396 114 447 721 1021 1552 829 893 277 174 1415 Cannons 2610 | . . . . 136 248 . 129 1652 99 144 159 43 . . . . . . . . . . . . Explosions 6126 | . 12 . 179 . . . 305 848 1203 . 937 . . 491 . . . 384 239 . 305 695 . 528 Melee . | . . . . . . . . . . . . . . . . . . . . . . . . . Ramming 3 | . . . . . . . . . . . . . . . . . . . . 3 . . . . Kinetic 12935 | . 97 131 17 262 775 . 212 1888 107 189 214 1593 101 396 114 447 721 1021 1552 829 893 277 174 925 Thermal 2604 | . 164 469 . 128 248 . 129 588 133 62 112 43 . . . . . . . . . . . 528 Explosive 5070 | . 12 . 179 . . . 305 848 1144 . 468 . . 491 . . . 384 239 . 305 695 . . Electromagnetic 469 | . . . . . . . . . . . 469 . . . . . . . . . . . . . Impact . | . . . . . . . . . . . . . . . . . . . . . . . . . Slashing 81 | . . . . . . . . . . . . . . . . . . . . . 40 41 . . Piercing . | . . . . . . . . . . . . . . . . . . . . . . . . . Entropic 490 | . . . . . . . . . . . . . . . . . . . . . . . . 490 Highest Corruption 7 | . . . 7 . . . . . . . 4 1 1 1 1 1 . . . 2 3 1 . 7 Average Corruption 1 | . . . 6 . . . . . . . 2 1 1 1 1 1 . . . 1 2 1 . 7 Corruption Purged . | . . . . . . . . . . . . . . . . . . . . . . . . . Corruption Blocked 4 | . . . . . . . . . . . . . . . . . . . . . . . . 4 Effects 30 | . . . . . . . . . . . . 2 2 1 1 3 . . . 1 13 6 . 1 Message Errors 4 | . . . . . . . . . . . . . . . . . . . . . 1 2 . 1 Matter Fused 11 | . . . . . . . . . . . . 1 2 . . 2 . . . 1 3 2 . . Heat Flow Errors 3 | . . . . . . . . . . . . . . . . 1 . . . . 1 1 . . Energy Discharges 5 | . . . . . . . . . . . . . . 1 . . . . . . 4 . . . Data Loss (minor) 2 | . . . . . . . . . . . . . . . . . . . . . 2 . . . Data Loss (major) 3 | . . . . . . . . . . . . . . . 1 . . . . . 1 1 . . Misfires 1 | . . . . . . . . . . . . 1 . . . . . . . . . . . . Weapon Failures 1 | . . . . . . . . . . . . . . . . . . . . . 1 . . . Overload Shots . | . . . . . . . . . . . . . . . . . . . . . . . . . Overflow Damage 277 | . . . 24 . . . . 13 . . . . . . . . . 4 . . . 119 . 117 Projectiles . | . . . . . . . . . . . . . . . . . . . . . . . . . Explosions 277 | . . . 24 . . . . 13 . . . . . . . . . 4 . . . 119 . 117 Melee . | . . . . . . . . . . . . . . . . . . . . . . . . . Knockbacks 3 | . . . . 2 . . . . . 1 . . . . . . . . . . . . . . Impact . | . . . . . . . . . . . . . . . . . . . . . . . . . Kinetic 3 | . . . . 2 . . . . . 1 . . . . . . . . . . . . . . Secondary . | . . . . . . . . . . . . . . . . . . . . . . . . . Self-Inflicted Damage 580 | . 37 . 36 . . . 24 50 . . 93 . . 32 . . . . . . . 308 . . Shots 10 | . 1 . 1 . . . 1 1 . . 1 . . 1 . . . . . . . 4 . . Rammed . | . . . . . . . . . . . . . . . . . . . . . . . . . Targets Rammed 3 | . . . . . . . . 2 . . . . . . . . . . . 1 . . . . Kicked 3 | . . . . . . . . 2 . . . . . . . . . . . 1 . . . . Crushed . | . . . . . . . . . . . . . . . . . . . . . . . . . Highest Temperature 442 | . 210 212 27 246 123 . 114 442 160 79 188 345 224 343 84 304 197 198 198 185 188 161 134 199 Average Temperature 79 | . 60 64 13 79 53 . 50 76 57 43 68 95 114 154 46 125 93 81 91 65 67 56 66 81 Received Heat Transfer 2308 | . 111 222 . 27 99 . 81 733 45 18 54 351 . 102 . 18 117 9 54 42 45 9 . 171 Effects 5 | . . . . 1 . . . 1 . . . . . . . 3 . . . . . . . . Interference 4 | . . . . 1 . . . . . . . . . . . 3 . . . . . . . . Damage (minor) 1 | . . . . . . . . 1 . . . . . . . . . . . . . . . . Siege Activations . | . . . . . . . . . . . . . . . . . . . . . . . . . Robots Corrupted 1 | . . . . . . . . . . . 1 . . . . . . . . . . . . . Combat Hostiles 1 | . . . . . . . . . . . 1 . . . . . . . . . . . . . Parts Fried 2 | . . . . . . . . . . . 2 . . . . . . . . . . . . . Impact Corruptions . | . . . . . . . . . . . . . . . . . . . . . . . . . Robots Melted . | . . . . . . . . . . . . . . . . . . . . . . . . . Combat Hostiles . | . . . . . . . . . . . . . . . . . . . . . . . . . Parts Melted 3 | . . 1 . 1 . . . 1 . . . . . . . . . . . . . . . . Heat Transferred 3402 | . 385 1258 . 259 300 . 150 700 . . . 50 . . . . . . . . . . . 300 Parts Sabotaged . | . . . . . . . . . . . . . . . . . . . . . . . . . Parts Stolen . | . . . . . . . . . . . . . . . . . . . . . . . . . Parts Stripped . | . . . . . . . . . . . . . . . . . . . . . . . . . Power Chain Reactions 2 | . . . . . . . . . 1 . 1 . . . . . . . . . . . . . Alert | -11 -10 -9 -9 -8 -8 -8 -6 -6 -6 -6 -6 -5 -5 -5 -5 -4 -4 -4 -4 -4 -3 -3 -2 -1 ------- Run | Yrd Mat Mat Min Mat Sto Rec Fac Ext Cet Arc Hub Fac Upp Upp Zhi Pro Fac Upp Upp War Pro Res Res Acc Peak Influence 1042 | . 245 275 40 156 330 108 204 435 630 438 1042 618 . . . . 115 . . . . 633 100 277 Initial 492 | . . 25 40 . 18 86 . 32 165 249 30 492 . . . . . . . . . 300 90 5 Average 188 | . 76 148 35 55 178 57 59 179 441 323 349 541 . . . . 30 . . . . 301 38 89 Maximum Alert Level 3 | . 1 1 . . 1 . 1 2 2 2 3 2 . . . . . . . . . 2 . 1 Low Security (%) 64 | 100 90 62 100 100 56 100 85 69 5 3 44 . . . . . 100 . . . . 47 100 90 Level 1 17 | . 9 37 . . 43 . 14 29 21 53 16 . . . . . . . . . . 13 . 9 Level 2 18 | . . . . . . . . . 73 43 25 100 . . . . . . . . . 38 . . Level 3 . | . . . . . . . . . . . 13 . . . . . . . . . . . . . Level 4 . | . . . . . . . . . . . . . . . . . . . . . . . . . Level 5 . | . . . . . . . . . . . . . . . . . . . . . . . . . High Security . | . . . . . . . . . . . . . . . . . . . . . . . . . Max Security . | . . . . . . . . . . . . . . . . . . . . . . . . . Squads Dispatched 32 | . 1 . . . 3 . . 3 3 . 6 4 . . . . 1 . . . . 7 . 4 Investigation 11 | . . . . . 2 . . 2 3 . 1 . . . . . . . . . . 3 . . Extermination 3 | . . . . . . . . . . . . 1 . . . . . . . . . . . 2 Reinforcement 18 | . 1 . . . 1 . . 1 . . 5 3 . . . . 1 . . . . 4 . 2 Assault . | . . . . . . . . . . . . . . . . . . . . . . . . . Garrison . | . . . . . . . . . . . . . . . . . . . . . . . . . Intercept . | . . . . . . . . . . . . . . . . . . . . . . . . . Searches Triggered . | . . . . . . . . . . . . . . . . . . . . . . . . . Construction Impeded 2 | . . . . . . . . 1 . . 1 . . . . . . . . . . . . . Haulers Reinforced 2 | . . . . . . . . . . . 1 . . . . . . . . . . 1 . . Active Scanning Responses . | . . . . . . . . . . . . . . . . . . . . . . . . . Cargo Convoy Interrupts . | . . . . . . . . . . . . . . . . . . . . . . . . . Stealth | -11 -10 -9 -9 -8 -8 -8 -6 -6 -6 -6 -6 -5 -5 -5 -5 -4 -4 -4 -4 -4 -3 -3 -2 -1 --------- Run | Yrd Mat Mat Min Mat Sto Rec Fac Ext Cet Arc Hub Fac Upp Upp Zhi Pro Fac Upp Upp War Pro Res Res Acc Distress Signals 29 | . 1 1 . 1 2 . . 1 1 . 1 . . . . . . . . . . 8 11 2 Communications Jammed 171 | . . . . . . . . . . . . . . . . . 27 . . 61 3 2 . 78 Distress Signals 165 | . . . . . . . . . . . . . . . . . 27 . . 61 . 2 . 75 Times Spotted 335 | . 13 17 22 9 16 . 8 37 15 2 26 10 1 10 . 3 9 8 13 41 12 9 7 47 Peak Tracking Total 16 | . 7 7 16 3 4 . 5 6 5 1 9 3 1 9 . 2 4 5 5 10 3 4 3 13 Tactical Retreats 15 | . . . . . 2 . . 3 . . 1 . . . . . 1 1 . 2 . 1 . 4 Traps | -11 -10 -9 -9 -8 -8 -8 -6 -6 -6 -6 -6 -5 -5 -5 -5 -4 -4 -4 -4 -4 -3 -3 -2 -1 ------- Run | Yrd Mat Mat Min Mat Sto Rec Fac Ext Cet Arc Hub Fac Upp Upp Zhi Pro Fac Upp Upp War Pro Res Res Acc Traps Triggered 6 | . 1 . . . 1 . . 1 . . 1 . . . . . . . . . . . 1 1 Indirectly 1 | . . . . . . . . . . . 1 . . . . . . . . . . . . . Trap Hack Attempts . | . . . . . . . . . . . . . . . . . . . . . . . . . Triggered . | . . . . . . . . . . . . . . . . . . . . . . . . . Disarmed . | . . . . . . . . . . . . . . . . . . . . . . . . . Reprogrammed . | . . . . . . . . . . . . . . . . . . . . . . . . . Reused . | . . . . . . . . . . . . . . . . . . . . . . . . . Traps Extracted . | . . . . . . . . . . . . . . . . . . . . . . . . . Installed . | . . . . . . . . . . . . . . . . . . . . . . . . . Triggered 13 | . . . . . . . . . . . . . . . . . . 1 . 12 . . . . Machines | -11 -10 -9 -9 -8 -8 -8 -6 -6 -6 -6 -6 -5 -5 -5 -5 -4 -4 -4 -4 -4 -3 -3 -2 -1 ---------- Run | Yrd Mat Mat Min Mat Sto Rec Fac Ext Cet Arc Hub Fac Upp Upp Zhi Pro Fac Upp Upp War Pro Res Res Acc Machines Disabled 50 | . 1 . . 1 3 . 1 4 6 2 17 3 . . . . 1 1 . . 1 5 . 4 Max in Single Turn 10 | . 1 . . 1 1 . 1 1 1 1 10 2 . . . . 1 1 . . 1 1 . 2 Garrison Access 1 | . . . . . . . . . . . . 1 . . . . . . . . . . . . Network Hub 1 | . . . . . . . . . . . 1 . . . . . . . . . . . . . Energy Cycler 1 | . . . . . . . . . . . . . . . . . . . . . . . . 1 Machines Repaired . | . . . . . . . . . . . . . . . . . . . . . . . . . Machines Dismantled . | . . . . . . . . . . . . . . . . . . . . . . . . . Machines Sabotaged . | . . . . . . . . . . . . . . . . . . . . . . . . . Overloaded Fab Kills . | . . . . . . . . . . . . . . . . . . . . . . . . . Hacking | -11 -10 -9 -9 -8 -8 -8 -6 -6 -6 -6 -6 -5 -5 -5 -5 -4 -4 -4 -4 -4 -3 -3 -2 -1 --------- Run | Yrd Mat Mat Min Mat Sto Rec Fac Ext Cet Arc Hub Fac Upp Upp Zhi Pro Fac Upp Upp War Pro Res Res Acc Machines Accessed 75 | . 2 4 . 3 10 11 3 16 4 . 2 3 1 . 4 . 5 . . 1 . 5 1 . Terminals 55 | . 2 3 . 3 9 5 3 16 4 . 2 1 1 . . . 2 . . . . 4 . . Fabricators . | . . . . . . . . . . . . . . . . . . . . . . . . . Repair Stations 2 | . . . . . 1 . . . . . . 1 . . . . . . . . . . . . Recycling Units 10 | . . 1 . . . 6 . . . . . . . . . . 2 . . . . . 1 . Scanalyzers 1 | . . . . . . . . . . . . . . . . . . . . . . 1 . . Garrison Access 2 | . . . . . . . . . . . . 1 . . . . 1 . . . . . . . Total Hacks 193 | . 10 10 . 7 25 18 8 33 9 . 5 19 1 . 17 . 14 . . 1 . 15 1 . Successful 101 | . 6 6 . 3 16 12 4 14 3 . 1 6 1 . 17 . 4 . . 1 . 6 1 . Failed 92 | . 4 4 . 4 9 6 4 19 6 . 4 13 . . . . 10 . . . . 9 . . Catastrophic 15 | . . . . 1 1 2 1 1 2 . 1 3 . . . . 1 . . . . 2 . . Database Lockouts . | . . . . . . . . . . . . . . . . . . . . . . . . . Manual 72 | . 6 7 . 4 8 8 5 12 2 . 5 4 . . . . 1 . . . . 10 . . Terminals 137 | . 10 9 . 7 21 12 8 33 9 . 5 5 1 . . . 6 . . . . 11 . . Fabricators . | . . . . . . . . . . . . . . . . . . . . . . . . . Repair Stations 13 | . . . . . 4 . . . . . . 9 . . . . . . . . . . . . Recycling Units 13 | . . 1 . . . 6 . . . . . . . . . . 5 . . . . . 1 . Scanalyzers 4 | . . . . . . . . . . . . . . . . . . . . . . 4 . . Garrison Access 8 | . . . . . . . . . . . . 5 . . . . 3 . . . . . . . Terminal Hacks 60 | . 4 2 . 1 10 3 1 10 3 . . 1 1 . 17 . 3 . . 1 . 3 . . Record 9 | . . . . . . . . . 3 . . . 1 . 5 . . . . . . . . . Part Schematic 4 | . . . . . . . . . . . . . . . 4 . . . . . . . . . Robot Analysis 7 | . 1 . . . 1 . . 1 . . . . . . 4 . . . . . . . . . Prototype ID Bank 9 | . 1 1 . 1 1 . . 1 . . . . . . 4 . . . . . . . . . Open Door 11 | . . . . . 2 . . 8 . . . . . . . . . . . 1 . . . . Open DSF 1 | . . . . . . . . . . . . . . . . . 1 . . . . . . . Branch Access Points 1 | . . . . . 1 . . . . . . . . . . . . . . . . . . . Terminal Index 1 | . . . . . . 1 . . . . . . . . . . . . . . . . . . Alert Level 3 | . 1 . . . . 1 . . . . . . . . . . . . . . . 1 . . Unreport Threat 4 | . . . . . . . 1 . . . . . . . . . 1 . . . . 2 . . Locate Traps 3 | . . 1 . . 1 . . . . . . 1 . . . . . . . . . . . . Dispatch Records 1 | . . . . . 1 . . . . . . . . . . . . . . . . . . . Security Status 1 | . . . . . . 1 . . . . . . . . . . . . . . . . . . Patrol Status 1 | . . . . . 1 . . . . . . . . . . . . . . . . . . . Recall Reinforcements 1 | . . . . . 1 . . . . . . . . . . . . . . . . . . . Zone Layout 3 | . 1 . . . 1 . . . . . . . . . . . 1 . . . . . . . Fabricator Hacks . | . . . . . . . . . . . . . . . . . . . . . . . . . Repair Station Hacks 6 | . . . . . 3 . . . . . . 3 . . . . . . . . . . . . Scan Component 4 | . . . . . 2 . . . . . . 2 . . . . . . . . . . . . Repair 2 | . . . . . 1 . . . . . . 1 . . . . . . . . . . . . Recycling Unit Hacks 9 | . . 1 . . . 6 . . . . . . . . . . 1 . . . . . 1 . Report Inventory 9 | . . 1 . . . 6 . . . . . . . . . . 1 . . . . . 1 . Scanalyzer 3 | . . . . . . . . . . . . . . . . . . . . . . 3 . . Insert Component 2 | . . . . . . . . . . . . . . . . . . . . . . 2 . . Analyze 1 | . . . . . . . . . . . . . . . . . . . . . . 1 . . Garrison Access Hacks 1 | . . . . . . . . . . . . 1 . . . . . . . . . . . . Seal Access 1 | . . . . . . . . . . . . 1 . . . . . . . . . . . . Unauthorized Hacks 22 | . 2 3 . 2 3 3 3 4 . . 1 1 . . . . . . . . . . . . Terminals 22 | . 2 3 . 2 3 3 3 4 . . 1 1 . . . . . . . . . . . . Assimilate 1 | . . . . . . . . 1 . . . . . . . . . . . . . . . . Botnet 21 | . 2 3 . 2 3 3 3 3 . . 1 1 . . . . . . . . . . . . Fabricators . | . . . . . . . . . . . . . . . . . . . . . . . . . Repair Stations . | . . . . . . . . . . . . . . . . . . . . . . . . . Recycling Units . | . . . . . . . . . . . . . . . . . . . . . . . . . Scanalyzers . | . . . . . . . . . . . . . . . . . . . . . . . . . Garrison Access . | . . . . . . . . . . . . . . . . . . . . . . . . . Data Cores Recovered 1 | . . . . . 1 . . . . . . . . . . . . . . . . . . . Used . | . . . . . . . . . . . . . . . . . . . . . . . . . Hacking Detections 51 | . 1 3 . 3 10 4 3 11 3 . 2 3 . . . . 4 . . . . 4 . . Full Trace Events 8 | . . . . 1 2 . . 1 3 . 1 . . . . . . . . . . . . . Feedback Events . | . . . . . . . . . . . . . . . . . . . . . . . . . Feedback Blocked . | . . . . . . . . . . . . . . . . . . . . . . . . . Robot Schematics Acquired . | . . . . . . . . . . . . . . . . . . . . . . . . . Robots Built . | . . . . . . . . . . . . . . . . . . . . . . . . . Authchips . | . . . . . . . . . . . . . . . . . . . . . . . . . Time . | . . . . . . . . . . . . . . . . . . . . . . . . . Total Robot Build Rating . | . . . . . . . . . . . . . . . . . . . . . . . . . Part Schematics Acquired 5 | . . . . . . . . . . . . . . . 4 . . . . . . 1 . . Parts Built . | . . . . . . . . . . . . . . . . . . . . . . . . . Authchips . | . . . . . . . . . . . . . . . . . . . . . . . . . Time . | . . . . . . . . . . . . . . . . . . . . . . . . . Total Part Build Rating . | . . . . . . . . . . . . . . . . . . . . . . . . . Parts Repaired 2 | . . . . . 1 . . . . . . 1 . . . . . . . . . . . . Time 51 | . . . . . 26 . . . . . . 25 . . . . . . . . . . . . Parts Recycled . | . . . . . . . . . . . . . . . . . . . . . . . . . Recycled Matter . | . . . . . . . . . . . . . . . . . . . . . . . . . Retrieved Matter . | . . . . . . . . . . . . . . . . . . . . . . . . . Retrieved Components . | . . . . . . . . . . . . . . . . . . . . . . . . . Parts Scanalyzed 1 | . . . . . . . . . . . . . . . . . . . . . . 1 . . Part Schematics Acquired 1 | . . . . . . . . . . . . . . . . . . . . . . 1 . . Parts Damaged . | . . . . . . . . . . . . . . . . . . . . . . . . . Bothacking | -11 -10 -9 -9 -8 -8 -8 -6 -6 -6 -6 -6 -5 -5 -5 -5 -4 -4 -4 -4 -4 -3 -3 -2 -1 ------------ Run | Yrd Mat Mat Min Mat Sto Rec Fac Ext Cet Arc Hub Fac Upp Upp Zhi Pro Fac Upp Upp War Pro Res Res Acc Used RIF Installer . | . . . . . . . . . . . . . . . . . . . . . . . . . Robots Hacked . | . . . . . . . . . . . . . . . . . . . . . . . . . Non-combat . | . . . . . . . . . . . . . . . . . . . . . . . . . Combat . | . . . . . . . . . . . . . . . . . . . . . . . . . Robot Hacks Applied . | . . . . . . . . . . . . . . . . . . . . . . . . . Relay Couplers Released . | . . . . . . . . . . . . . . . . . . . . . . . . . Fabnet Peak Effective % . | . . . . . . . . . . . . . . . . . . . . . . . . . Robots Rewired 11 | . . . . . . . . 10 . . . . . . . . . . . . 1 . . . Allies Hacked . | . . . . . . . . . . . . . . . . . . . . . . . . . Hacks Repelled . | . . . . . . . . . . . . . . . . . . . . . . . . . Allies | -11 -10 -9 -9 -8 -8 -8 -6 -6 -6 -6 -6 -5 -5 -5 -5 -4 -4 -4 -4 -4 -3 -3 -2 -1 -------- Run | Yrd Mat Mat Min Mat Sto Rec Fac Ext Cet Arc Hub Fac Upp Upp Zhi Pro Fac Upp Upp War Pro Res Res Acc Total Allies 25 | . . . . . . . . 19 5 . . . . . . . . . . . 1 . . . Largest Group 8 | . . . . . . . . 8 8 6 5 . . . . . . . . . 1 1 . . Highest-Rated Group 554 | . . . . . . . . 353 554 498 345 . . . . . . . . . 42 42 . . Highest-Rated Ally 159 | . . . . . . . . 159 159 153 96 . . . . . . . . . 42 42 . . Total Orders . | . . . . . . . . . . . . . . . . . . . . . . . . . Ally Attacks 244 | . . . . . . . . 102 81 18 38 . . . . . . . . . . 5 . . Total Damage 7345 | . . . . . . . . 2105 2720 662 1698 . . . . . . . . . . 160 . . Kills 45 | . . . . . . . . 17 14 2 12 . . . . . . . . . . . . . Allies Corrupted . | . . . . . . . . . . . . . . . . . . . . . . . . . Allies Melted 2 | . . . . . . . . . 2 . . . . . . . . . . . . . . . Intel | -11 -10 -9 -9 -8 -8 -8 -6 -6 -6 -6 -6 -5 -5 -5 -5 -4 -4 -4 -4 -4 -3 -3 -2 -1 ------- Run | Yrd Mat Mat Min Mat Sto Rec Fac Ext Cet Arc Hub Fac Upp Upp Zhi Pro Fac Upp Upp War Pro Res Res Acc Robot Analysis Total 7 | . 1 . . . 1 . . 1 . . . . . . 4 . . . . . . . . . Derelict Logs Recovered 7 | . . . 1 . . . . . . . . . . 1 . 1 . 3 1 . . . . . Drone Launches . | . . . . . . . . . . . . . . . . . . . . . . . . . Drone Recoveries . | . . . . . . . . . . . . . . . . . . . . . . . . . Exploration | -11 -10 -9 -9 -8 -8 -8 -6 -6 -6 -6 -6 -5 -5 -5 -5 -4 -4 -4 -4 -4 -3 -3 -2 -1 ------------- Run | Yrd Mat Mat Min Mat Sto Rec Fac Ext Cet Arc Hub Fac Upp Upp Zhi Pro Fac Upp Upp War Pro Res Res Acc Turns Passed 15145 | 64 662 445 416 561 708 681 300 2018 795 825 212 788 335 247 188 636 547 537 436 650 499 766 1057 772 Spaces Moved 9626 | 47 317 202 218 261 390 567 220 1251 501 83 134 486 305 222 173 427 420 431 272 509 310 544 709 627 Core 115 | 5 . . . . . . . . . . . . . . . . . . . . . . . 110 Treads . | . . . . . . . . . . . . . . . . . . . . . . . . . Legs 9388 | 42 317 202 210 261 390 567 220 1251 501 83 134 486 305 222 173 427 420 431 272 509 310 544 709 402 Wheels 8 | . . . 8 . . . . . . . . . . . . . . . . . . . . . Hover 33 | . . . . . . . . . . . . . . . . . . . . . . . . 33 Flight 82 | . . . . . . . . . . . . . . . . . . . . . . . . 82 Fastest Speed 40 | 50 120 120 115 120 120 120 120 120 120 120 120 90 97 97 97 97 97 108 112 112 110 115 116 40 Average Speed 121 | 112 144 161 185 175 141 120 120 123 122 120 120 113 97 97 97 135 110 108 113 112 128 123 118 92 Slowest Speed 260 | 120 190 190 260 190 190 120 120 190 190 120 120 260 97 97 97 182 182 114 114 114 186 186 120 185 Overloaded Moves . | . . . . . . . . . . . . . . . . . . . . . . . . . Propulsion Burnouts . | . . . . . . . . . . . . . . . . . . . . . . . . . Robots Hopped 6 | . . . . . . . . . . . . . . . . . . . . . . . . 6 Cave-ins Triggered . | . . . . . . . . . . . . . . . . . . . . . . . . . Teleports 1 | . . . . . . . . . . . . . . . . . . . . . . . . 1 Exploration Rate (%) 47 | 3 49 20 55 24 73 96 7 88 92 88 35 14 55 40 63 70 15 57 52 64 48 26 26 17 Regions Visited 24 Branch Regions 15 Pre-discovered Areas 6 | . . . . . . . . . . . . . . 1 3 . . 1 1 . . . . . Known Exits Taken 2 | . . . . . 1 . . . . . . . . . . . . . . . . 1 . . Unknown Exits Taken 22 | 1 1 1 1 1 . 1 1 1 1 1 1 1 1 1 1 1 1 1 1 1 1 . 1 . Scrap Searched 7 | . . . . . . . . . . . . . 2 1 . 1 . 2 1 . . . . . Spaces Dug 27 | . . . . . . . . 22 . . . . . . . . . . . . . 5 . . Terrain Destroyed 894 | . . . 6 . . . 19 73 130 4 285 10 1 55 . 16 10 21 28 3 66 97 6 64 Melee . | . . . . . . . . . . . . . . . . . . . . . . . . . Projectile 154 | . . . . . . . . 7 2 4 6 7 1 9 . 15 9 6 18 3 42 6 6 13 AOE 734 | . . . 6 . . . 19 66 128 . 279 . . 46 . . . 15 9 . 24 91 . 51 Terrain Rammed . | . . . . . . . . . . . . . . . . . . . . . . . . . Walls Destroyed . | . . . . . . . . . . . . . . . . . . . . . . . . . Machines Disabled . | . . . . . . . . . . . . . . . . . . . . . . . . . Actions | -11 -10 -9 -9 -8 -8 -8 -6 -6 -6 -6 -6 -5 -5 -5 -5 -4 -4 -4 -4 -4 -3 -3 -2 -1 --------- Run | Yrd Mat Mat Min Mat Sto Rec Fac Ext Cet Arc Hub Fac Upp Upp Zhi Pro Fac Upp Upp War Pro Res Res Acc Total 12177 | 55 480 275 226 339 486 568 242 1588 633 797 159 646 338 237 189 460 477 468 331 555 354 608 914 752 Wait 1640 | . 129 31 . 23 49 . 6 119 88 704 5 94 30 . 3 16 19 10 21 13 8 18 185 69 Move 9594 | 46 316 201 217 260 389 566 219 1250 500 82 134 485 304 221 172 426 419 430 271 509 309 543 708 617 Hop 4 | . . . . . . . . . . . . . . . . . . . . . . . . 4 Pick Up 90 | 3 6 9 1 12 4 . 2 19 . 2 . 7 1 1 1 . 2 2 2 5 . 1 6 4 Fast Attach 108 | 6 3 3 1 7 4 . 1 11 4 . 2 14 . 1 5 1 10 1 . 6 1 12 5 10 Attach 75 | . . 4 3 9 1 1 4 14 2 1 . 5 . . 1 2 1 . 4 2 1 5 1 14 Detach 18 | . . . 1 . 1 . 1 2 2 . . 1 . 1 . . 3 . . 1 . 4 . 1 Swap 76 | . 4 2 . 4 3 . 2 18 6 3 6 5 . 5 . 2 1 7 1 2 2 1 1 1 Drop 89 | . 2 5 1 12 5 1 . 14 3 . 3 7 . . 5 . 8 3 . 5 1 4 4 6 Fire 401 | . 20 20 2 12 25 . 5 77 28 5 9 28 3 8 2 13 14 15 32 12 23 20 4 24 Melee . | . . . . . . . . . . . . . . . . . . . . . . . . . Ram . | . . . . . . . . . . . . . . . . . . . . . . . . . Kick 2 | . . . . . . . . 2 . . . . . . . . . . . . . . . . Crush . | . . . . . . . . . . . . . . . . . . . . . . . . . Escape Stasis 5 | . . . . . 5 . . . . . . . . . . . . . . . . . . . Rewire 73 | . . . . . . . 2 62 . . . . . . . . . . . . 9 . . . Trap . | . . . . . . . . . . . . . . . . . . . . . . . . . Miscellaneous 2 | . . . . . . . . . . . . . . . . . . . . . . . . 2 Route ------- -11/Scrapyard -10/Materials (discovered 2 exits: *Mat x2) -9/Materials -9/Mines (discovered 2 exits: *Mat x2) -8/Materials (discovered 3 exits: Fac / *Sto x2) -8/Storage (discovered 2 exits: *Fac / *Rec) -8/Recycling -6/Factory (discovered 2 exits: [*Low] / *Ext) -6/Extension (discovered 3 exits: *Fac x2 / *Cet) -6/Cetus (discovered 2 exits: *Fac / [*Arc]) -6/Archives (discovered 3 exits: *Fac / *Hub x2) -6/Hub_04(d) -5/Factory -5/Upper Caves -5/Upper Caves -5/Zhirov -4/Proximity Caves -4/Factory -4/Upper Caves -4/Upper Caves -4/Warlord -3/Proximity Caves -3/Research -2/Research (discovered 3 exits: [*Acc x2] / [*Tes]) -1/Access History --------- Turn | Location | Event 45 | -11/Scrapyard | Discovered new exit (range 13) 65 | -11/Scrapyard | Entered Materials 175 | -10/Materials | Discovered new exit (range 14) 301 | -10/Materials | Build established: Mutant 583 | -10/Materials | Discovered new exit (range 16) 665 | -10/Materials | Derelicts attacked the area 727 | -10/Materials | Entered another Materials area 727 | -9/Materials | Evolved 2 slots: Propulsion x1, Weapon x1 1039 | -9/Materials | Build established: Scavenger-Gunner 1143 | -9/Materials | Discovered new exit (range 16) 1172 | -9/Materials | Entered Mines 1179 | -9/Mines | Received a Rocket Launcher from a helpful Derelict 1410 | -9/Mines | Discovered new exit (range 10) 1421 | -9/Mines | Discovered new exit (range 7) 1534 | -9/Mines | Assembled infested the area 1539 | -9/Mines | Assisted by a Guerilla fighting off Assembled 1568 | -9/Mines | Core integrity fell below 50% 1577 | -9/Mines | Core integrity fell below 20% 1588 | -9/Mines | Entered Materials 1588 | -8/Materials | Evolved 2 slots: Utility x2 1589 | -8/Materials | Identified exit to Factory 1609 | -8/Materials | Lost 9 parts (1p4n1u3w) 1863 | -8/Materials | Build established: Scavenger-Tank 1989 | -8/Materials | Discovered new exit (range 15) 2061 | -8/Materials | Discovered new exit (range 7) 2149 | -8/Materials | Entered Storage 2389 | -8/Storage | Repaired Aluminum Leg 2737 | -8/Storage | Discovered exit to Factory (range 16) 2775 | -8/Storage | Identified exit to Recycling 2838 | -8/Storage | Build established: Gunner 2852 | -8/Storage | Used back door to open Recycling access 2857 | -8/Storage | Entered Recycling 3204 | -8/Recycling | Discovered new exit (range 5) 3538 | -8/Recycling | Entered Factory 3538 | -6/Factory | Evolved 4 slots: Propulsion x1, Utility x2, Weapon x1 3813 | -6/Factory | Discovered new exit (range 17) 3814 | -6/Factory | Discovered new exit (range 13) 3838 | -6/Factory | Entered Extension 3938 | -6/Extension | Disrupted transfer network 4011 | -6/Extension | Rescued a captive Derelict 4077 | -6/Extension | Rescued a captive Derelict 4152 | -6/Extension | Rescued a captive Derelict 4153 | -6/Extension | Rescued a captive Derelict 4264 | -6/Extension | Rescued a captive Derelict 4627 | -6/Extension | Spotted B-75 Beast 4662 | -6/Extension | Allies destroyed B-75 Beast 4669 | -6/Extension | Spotted B-75 Beast 4676 | -6/Extension | Build established: Scavenger-Tank 4763 | -6/Extension | Lost 8 parts (1p2n2u3w) 5129 | -6/Extension | Build established: Scavenger-Mutant 5347 | -6/Extension | Destroyed B-75 Beast 5431 | -6/Extension | Discovered new exit (range 3) 5653 | -6/Extension | Rescued a captive Derelict 5697 | -6/Extension | Build established: Scavenger-Gunner 5706 | -6/Extension | Rescued A7 5734 | -6/Extension | Rescued a captive Derelict 5793 | -6/Extension | Discovered new exit (range 10) 5796 | -6/Extension | Discovered new exit (range 6) 5855 | -6/Extension | Disrupted transfer network 5856 | -6/Extension | Entered Cetus 5856 | -6/Cetus | Accompanied by 8 allies (A7) 5861 | -6/Cetus | Acquired a Cetus Manufacturing Module code from A7 5877 | -6/Cetus | Spotted Cetus Guard 5877 | -6/Cetus | Spotted Cetus Guard 5877 | -6/Cetus | Spotted Cetus Guard 5877 | -6/Cetus | Spotted Cetus Guard 5888 | -6/Cetus | Allies destroyed Cetus Guard 5897 | -6/Cetus | Allies destroyed Cetus Guard 5901 | -6/Cetus | Allies destroyed Cetus Guard 5904 | -6/Cetus | Allies destroyed Cetus Guard 5930 | -6/Cetus | Lost 3 allies 5959 | -6/Cetus | Started Cetus Manufacturing Module 5984 | -6/Cetus | Manufactured an Enhanced Grunt 6009 | -6/Cetus | Manufactured an Enhanced Grunt 6034 | -6/Cetus | Manufactured an Enhanced Grunt 6059 | -6/Cetus | Manufactured an Enhanced Grunt 6084 | -6/Cetus | Manufactured an Enhanced Grunt 6150 | -6/Cetus | Discovered new exit (range 22) 6184 | -6/Cetus | Escorted A7 to Cetus Mainframe 6369 | -6/Cetus | Found a strange terminal 6458 | -6/Cetus | Spotted Cetus Guard 6458 | -6/Cetus | Spotted Cetus Guard 6458 | -6/Cetus | Spotted Cetus Guard 6458 | -6/Cetus | Spotted Cetus Guard 6461 | -6/Cetus | Discovered new exit (range 21) 6465 | -6/Cetus | Allies destroyed Cetus Guard 6467 | -6/Cetus | Destroyed Cetus Guard 6471 | -6/Cetus | Allies destroyed Cetus Guard 6472 | -6/Cetus | Allies destroyed Cetus Guard 6484 | -6/Cetus | Met Revision 17 6651 | -6/Cetus | Entered Archives 6651 | -6/Archives | Accompanied by 6 allies (A7) 6657 | -6/Archives | Received a hacking code to weaken MAIN.C 6703 | -6/Archives | Discovered new exit (range 16) 6713 | -6/Archives | Discovered new exit (range 15) 6727 | -6/Archives | Discovered new exit (range 15) 7476 | -6/Archives | Entered Hub_04(d) 7476 | -6/Hub_04(d) | Accompanied by 5 allies 7629 | -6/Hub_04(d) | Discovered new exit (range 17) 7659 | -6/Hub_04(d) | Network Hub disabled 7663 | -6/Hub_04(d) | Spotted Lightning 7666 | -6/Hub_04(d) | Spotted Lightning 7672 | -6/Hub_04(d) | Spotted Lightning 7674 | -6/Hub_04(d) | Spotted Lightning 7675 | -6/Hub_04(d) | Spotted Lightning 7688 | -6/Hub_04(d) | Entered Factory 7688 | -5/Factory | Evolved 2 slots: Power x1, Utility x1 7694 | -5/Factory | Lost 4 allies 7714 | -5/Factory | Lost 3 parts (1n1u1w) 7983 | -5/Factory | Repaired Flexi-carbon Leg 8205 | -5/Factory | Lost 3 parts (3n) 8368 | -5/Factory | Lost 3 parts (1n1u1w) 8415 | -5/Factory | Spotted B-75 Beast 8459 | -5/Factory | Discovered new exit (range 7) 8476 | -5/Factory | Entered Upper Caves 8746 | -5/Upper Caves | Discovered new exit (range 9) 8811 | -5/Upper Caves | Entered another Upper Caves area 8918 | -5/Upper Caves | Learned location of Armory (-4) 8991 | -5/Upper Caves | Found Imp. Powered Armor 9053 | -5/Upper Caves | Discovered new exit (range 6) 9055 | -5/Upper Caves | Attracted the attention of an 0b10 outpost 9058 | -5/Upper Caves | Entered Zhirov 9058 | -5/Zhirov | Discovered new exit (range 3) 9076 | -5/Zhirov | Met Zhirov 9097 | -5/Zhirov | Learned location of Quarantine (-3) 9097 | -5/Zhirov | Learned location of Testing (-2) 9097 | -5/Zhirov | Learned location of Command (-1) 9112 | -5/Zhirov | Zhirov requested help retrieving the SGEMP Prototype 9127 | -5/Zhirov | Found Alien Artifact 9127 | -5/Zhirov | Identified Integrated Reactor 9127 | -5/Zhirov | Installed Integrated Reactor, increased core energy generation (+10) 9143 | -5/Zhirov | Found Alien Artifact 9246 | -5/Zhirov | Entered Proximity Caves 9303 | -4/Proximity Caves | Learned Research trap positions 9373 | -4/Proximity Caves | Attracted the attention of an 0b10 checkpoint 9551 | -4/Proximity Caves | Lost 3 parts (2u1w) 9565 | -4/Proximity Caves | Discovered new exit (range 12) 9783 | -4/Proximity Caves | Build established: Scavenger-Tank 9882 | -4/Proximity Caves | Entered Factory 9882 | -4/Factory | Evolved 2 slots: Propulsion x1, Utility x1 9906 | -4/Factory | Identified exit to DSF 10375 | -4/Factory | Discovered new exit (range 17) 10429 | -4/Factory | Entered Upper Caves 10442 | -4/Upper Caves | Learned Research stockpile data 10781 | -4/Upper Caves | Attracted the attention of an 0b10 outpost 10852 | -4/Upper Caves | Build established: Scavenger-Gunner 10855 | -4/Upper Caves | Learned 4 Research zone layouts 10947 | -4/Upper Caves | Discovered new exit (range 5) 10966 | -4/Upper Caves | Entered another Upper Caves area 11180 | -4/Upper Caves | Attracted the attention of an 0b10 checkpoint 11394 | -4/Upper Caves | Discovered new exit (range 8) 11395 | -4/Upper Caves | Build established: Scavenger-Tank 11402 | -4/Upper Caves | Entered Warlord 11540 | -4/Warlord | Met Warlord 11547 | -4/Warlord | Warlord's base attacked by MAIN.C 11597 | -4/Warlord | Found Prototype Special Weapon 11597 | -4/Warlord | Identified RU-N14's Throwing Claymores v3 11600 | -4/Warlord | Found RU-N14's Throwing Claymores v3 11602 | -4/Warlord | Found RU-N14's Throwing Claymores v3 11760 | -4/Warlord | Lost 3 allies 11768 | -4/Warlord | Found Prototype Energy Gun 11768 | -4/Warlord | Identified Vortex Shotgun 11774 | -4/Warlord | Found Prototype Energy Gun 11774 | -4/Warlord | Identified Vortex Rail 11777 | -4/Warlord | Found Vortex Rail 11836 | -4/Warlord | Warlord forces counterattacked 11873 | -4/Warlord | Lost 4 allies 11896 | -4/Warlord | Spotted Executioner 11943 | -4/Warlord | Discovered new exit (range 14) 11948 | -4/Warlord | Spotted Executioner 11948 | -4/Warlord | Spotted Executioner 11982 | -4/Warlord | Destroyed Executioner 11989 | -4/Warlord | Destroyed Executioner 12029 | -4/Warlord | Lost 24 allies 12047 | -4/Warlord | Spotted Executioner 12047 | -4/Warlord | Spotted Executioner 12052 | -4/Warlord | Entered Proximity Caves 12060 | -3/Proximity Caves | Spotter reported a threat 12082 | -3/Proximity Caves | Lost 3 allies 12183 | -3/Proximity Caves | Spotter reported a threat 12324 | -3/Proximity Caves | Attracted the attention of an 0b10 outpost 12523 | -3/Proximity Caves | Discovered new exit (range 13) 12551 | -3/Proximity Caves | Entered Research 12551 | -3/Research | Accompanied by 1 ally 12551 | -3/Research | Evolved 2 slots: Utility x1, Weapon x1 12552 | -3/Research | Identified exit to Research 12553 | -3/Research | Loaded intel: 98 trap records 12751 | -3/Research | Revision forces began assault on 0b10 12839 | -3/Research | Lost 4 parts (2p1n1u) 13010 | -3/Research | Identified Transdimensional Reconstructor 13099 | -3/Research | Build established: Scavenger-Gunner 13251 | -3/Research | Research terminal network offline 13317 | -3/Research | Entered another Research area 13317 | -2/Research | Warlord forces began assault on 0b10 13317 | -2/Research | Evolved 2 slots: Utility x2 13409 | -2/Research | Met up with Warlord 13427 | -2/Research | Research machine network offline 13732 | -2/Research | Discovered new exit (range 12) 13950 | -2/Research | Borebot progress halted 13980 | -2/Research | Borebot progress halted 14148 | -2/Research | Discovered new exit (range 9) 14179 | -2/Research | Discovered new exit (range 22) 14263 | -2/Research | Spotted Striker 14317 | -2/Research | Warlord invited to help at Command 14320 | -2/Research | Spotted Striker 14374 | -2/Research | Entered Access 14374 | -1/Access | Evolved 2 slots: Utility x2 14742 | -1/Access | Lost 3 allies 14773 | -1/Access | Lost 5 parts (2u3w) 14788 | -1/Access | Warped through subspace 14906 | -1/Access | Lost 3 parts (1n1u1w) 14975 | -1/Access | Spotted B-99 Colossus 14992 | -1/Access | Spotted B-99 Colossus 15024 | -1/Access | Energy Cycler disabled 15029 | -1/Access | Core integrity fell below 50% 15083 | -1/Access | Lost 17 parts (1p4n7u5w) 15132 | -1/Access | Core integrity fell below 20% 15146 | -1/Access | Destroyed by S-43 Plague with Heavy Machine Gun Last Messages --------------- 15096_ Acquired 75 matter. 15097_ Acquired Biometal Leg. 15121_ Critical hit (Burn: +37). 15123_ Imp. Targeting Computer destroyed. 15123_ Adv. Target Analyzer destroyed. 15123_ Adv. Corruption Screen destroyed. 15123_ System corrupted by crushing effect (+2). 15123_ System corrupted by crushing effect (+3). 15123_ Knocked back. 15124_ ALERT: Rogue bot located, Programmers report to Access Zone 3C. 15124_ ALERT: Hostiles spotted, dispatching reinforcements to Terminal A011. 15124_ Imp. Antigrav System destroyed. 15129_ Xenon Bombardment Thruster destroyed. 15134_ Triggered Ambush Trap. 15134_ B-74 Champion emerges from a hatch in the floor. 15134_ S-43 Plague emerges from a hatch in the floor. 15140_ 0T54 NS5D>25P9L#2KO DC2R1HKOPO 15141_ Biometal Leg destroyed. [Achievement: I Think I Know What's Going On] Map ----- +----------------------------------------------------+ | ??????????????????????# """ #???# #?? | | ??????????????????????# """ #???# #?? | | ??????????????????????# " #???# #?? | | ??????????????????????# #???# #?? | | ??????????????????????# ! #???# #?? | | ??????????????????????#######+##+############# ### | | ????????????????????????????# | | ????????????????????????????# | | ????????????????????????????# | | ????????????????????????????# | | ????????????????????????????# | | ????????????????????????????# | | ????????????????????????????# | | ????????????????????????????######## ####### | | ???????????????????????????????????# #?????? | | ????????????????????????############ #?????? | | ????????????????????????# ] # #?????? | | ????????????????????????# # #?????? | | ????????????????????????#! " # #?????? | | ????????????????????????# """ # #?????? | | ????????????????????????# """ # #?????? | | ????????????????????????# " # #?????? | | ????????????????????????# # #?????? | | ????????????????????????#! s + #?????? | | ????????????????????????# " b # #?????? | | ????????????????????????#@ s""" # #?????? | | ????????????????????????# """ # #?????? | | ????????????????????????# " # #?????? | | ????????????????????????# ! ss # #?????? | | ????????????????????????# sss # #?????? | | ????????????????????????# # +?????? | | ????????????????????????############ #?????? | | ???????????????????????????????????? #?????? | | ???????????????????????????????????? #?????? | | ???????????????????????????????????? #?????? | | ???????????????????????????????????? #?????? | | ???????????????????????????????????? ? ??????? | | ???????????????????????????????????? ??????????? | | ?????????????????????????????????????????????????? | | ?????????????????????????????????????????????????? | | ?????????????????????????????????????????????????? | | ?????????????????????????????????????????????????? | | ?????????????????????????????????????????????????? | | ?????????????????????????????????????????????????? | | ?????????????????????????????????????????????????? | | ?????????????????????????????????????????????????? | | ?????????????????????????????????????????????????? | | ?????????????????????????????????????????????????? | | ?????????????????????????????????????????????????? | | ?????????????????????????????????????????????????? | +----------------------------------------------------+ Best States ------------- Heat Dissipation 59 Coolant Potential 100 Energy Generation 49 Energy Capacity 400 Matter Stores 300 Matter Capacity 300 Sight Range 22 Robot Scan Range 18 Terrain Scan Density 10 Jamming Range 16 Cloak Strength 3 Additional Mass Support 6 Corruption Block 20 Armor Coverage 625 Resistance: KI 25 Resistance: TH 25 Propulsion Shielding 66 Utility Shielding 66 Weapon Shielding 90 Weapon Cycling 20 Evasion (%) 62 Targeting Accuracy 12 Target Analysis 8 Recoil Reduction 6 Matter Filtering 30 Offensive Hacking 10 Item Schematics ----------------- Assault Drone Bay | -5/Zhirov | Free Exp. Heat Sink | -5/Zhirov | Free Exp. Optical Array | -5/Zhirov | Free Imp. Arc Thrower | -5/Zhirov | Free Adv. Remote Datajack | -3/Research | Scanalyzed Robot Schematics ------------------ None Fabricated ------------ Nothing Alien Tech Used ----------------- Integrated Reactor Transdimensional Reconstructor Achievements -------------- I Think I Know What's Going On It Was An Accident, I Swear Main Advantage No Signal Revising The Future Challenges ------------ None Game ------ Seed CoilReinforcedCompressor Manual? 0 Play Time 02:56:08 Cumulative 67.6 hours Start 2024.05.02 @ 15:53:43 End 2024.05.02 @ 22:49:21 Sessions 3 Manual Loads 0 Difficulty Rogue Special Mode None Game No. 64 Rogue 64 Adventurer 0 Explorer 0 Win Type - Total 2 Types 2/0/0/0/0/0/0/0/0 Lore% 50 Gallery% 58 Achievement% 47 Wizard Run 0 Options --------- Layout 0 ASCII 0 Keyboard 0 Movement Mouse Keybinds 0 Fullscreen 1 Font 18/Terminus Map View 76x50 Zoom Use 0% Tactical HUD 1 Map Filters NONE Filters NONE Steam 1 RUN: 78a2a007-4d00-44e9-a84d-4c581ff86527